Cogmind - Beta 13 @@@ ROGUE MODE // 2024.04.09 @ 01:30:41 Player: Olafz Result: Destroyed by H-81 Overseer with Heavy Linear Accelerator Performance ------------- Evolutions (8) 4000 Regions Visited (15) 3000 Robots Destroyed (69) 345 Value Destroyed (1654) 1654 Prototype IDs (10) 200 Alien Tech Used (0) 0 Bonus (5) 5 TOTAL SCORE: 9204 Bonus ------- High Alert Combat Kills 36 Follower Combat Kills 97 Friendly Fire -128 Cogmind --------- Core Integrity 0/1450 Matter 300/300 Energy 96/100 System Corruption 1% Temperature Cool (0) Movement Core (50) Location -2/Research Parts ------- > --- POWER (2) -------- (None) > --- PROPULSION (8) --- (None) > --- UTILITY (10) ----- Visual Processing Unit Advanced Visual Processing Unit > --- WEAPON (3) ------- (None) > --- INVENTORY (5) ---- Faulty Improved Q-thruster Advanced Reaction Control System Advanced Force Field Quantum Rifle Railgun Peak State ------------ > --- POWER ------------ Micro Nuclear Core Improved Fusion Compressor > --- PROPULSION ------- Improved Antigrav System Cooled Impulse Thruster Impulse Thruster Array > --- UTILITY ---------- Visual Processing Unit Advanced Visual Processing Unit Improved Signal Interpreter Improved Signal Interpreter Advanced Targeting Computer Advanced Targeting Computer Advanced Targeting Computer Improved Trap Extractor > --- WEAPON ----------- Enhanced Quantum Rifle > --- INVENTORY -------- Improved Trap Extractor Quantum Rifle Railgun Heavy Gauss Cannon [Rating: 78] Favorites ----------- Power Light Ion Engine Engine Light Ion Engine Power Core Light Nuclear Core Reactor Light Quantum Reactor Propulsion Improved VTOL Module Treads Light Treads Leg Aluminum Leg Hover Unit Improved Antigrav System Flight Unit Improved VTOL Module Utility Large Storage Unit Device Experimental Sensor Array Storage Large Storage Unit Processor Signal Interpreter Protection Hardened Light Armor Plating Weapon Assault Rifle Energy Gun Dispersion Rifle Ballistic Gun Assault Rifle Ballistic Cannon Heavy Gauss Cannon Launcher Rocket Launcher Impact Weapon Great Maul Slashing Weapon Great Axe Piercing Weapon Makeshift Spear Build | -11 -10 -10 -10 -9 -8 -7 -6 -5 -5 -5 -4 -4 -4 -3 -2 ------- Run | Yrd Mat Min Exi Min Mat Fac Fac Fac Upp Upp Fac Upp Upp Res Res Slots Evolved 16 | . . . . . 4 2 2 2 . . 2 . . 2 2 Power 1 | . . . . . . . . . . . 1 . . . . Propulsion 6 | . . . . . 1 1 . 2 . . . . . . 2 Utility 8 | . . . . . 3 1 2 . . . 1 . . 1 . Weapon 1 | . . . . . . . . . . . . . . 1 . Parts Attached 109 | 6 6 2 . 3 20 8 6 16 3 . 1 6 . 9 23 Power 23 | 1 2 . . 1 4 1 2 4 . . . 1 . 3 4 Engine 6 | 1 1 . . 1 2 . . 1 . . . . . . . Core 12 | . 1 . . . 2 1 2 3 . . . 1 . 1 1 Reactor 5 | . . . . . . . . . . . . . . 2 3 Propulsion 28 | 2 1 . . 2 4 2 1 4 . . . 1 . 4 7 Treads 4 | 2 . . . 1 1 . . . . . . . . . . Leg 2 | . 1 . . 1 . . . . . . . . . . . Wheel . | . . . . . . . . . . . . . . . . Hover 2 | . . . . . . . . . . . . . . 1 1 Flight 20 | . . . . . 3 2 1 4 . . . 1 . 3 6 Utility 36 | 1 2 . . . 6 3 3 7 1 . 1 2 . . 10 Device 18 | . . . . . 2 3 2 5 . . . . . . 6 Storage 2 | 1 1 . . . . . . . . . . . . . . Processor 15 | . 1 . . . 4 . 1 2 . . 1 2 . . 4 Hackware . | . . . . . . . . . . . . . . . . Protection 1 | . . . . . . . . . 1 . . . . . . Artifact . | . . . . . . . . . . . . . . . . Weapon 22 | 2 1 2 . . 6 2 . 1 2 . . 2 . 2 2 Energy Gun 2 | . . . . . . . . . . . . . . 1 1 Energy Cannon . | . . . . . . . . . . . . . . . . Ballistic Gun 11 | 2 1 2 . . 3 . . . 1 . . 1 . . 1 Ballistic Cannon 1 | . . . . . . . . . . . . . . 1 . Launcher 1 | . . . . . . . . 1 . . . . . . . Special Weapon . | . . . . . . . . . . . . . . . . Impact Weapon 1 | . . . . . 1 . . . . . . . . . . Slashing Weapon 4 | . . . . . 2 2 . . . . . . . . . Piercing Weapon 2 | . . . . . . . . . 1 . . 1 . . . Special Melee Weapon . | . . . . . . . . . . . . . . . . Unidentified Prototypes 5 | . . . . . 2 . . . . . . . . 1 2 Corrupted Parts 1 | . . . . . . . . . . . . . . 1 . System Corruption 10 | . . . . . . . . . . . . . . 10 . Parts Lost 58 | . 3 1 . . . . 4 12 . 1 . 12 . 3 22 Power 10 | . 1 . . . . . . 2 . . . 1 . 1 5 Propulsion 21 | . 2 . . . . . 1 6 . . . 3 . 1 8 Utility 18 | . . . . . . . 3 2 . 1 . 5 . . 7 Weapon 9 | . . 1 . . . . . 2 . . . 3 . 1 2 Highest Loss Streak 12 | . 3 1 . . . . 1 12 . 1 . 10 . 3 9 To Critical Strikes 1 | . . . . . . . . . . . . . . . 1 Average Slot Usage (%) 83 | . 96 84 85 98 92 97 90 82 57 56 50 44 21 30 41 Engine 7 | . 2 14 14 14 6 . . 1 . . . . . . . Core 3 | . 10 . . . 2 7 6 1 . . . . . . 1 Treads 4 | . 24 . . 7 2 . . . . . . . . . . Leg 7 | . 1 14 14 19 12 . . . . . . . . . . Flight 6 | . . . . . 7 30 25 28 11 11 10 6 . 6 7 Device 3 | . . . . . 15 12 18 9 . . . . . . 4 Storage 9 | . 14 14 14 14 6 . . . . . . . . . . Processor 18 | . 13 14 14 14 21 30 25 28 35 33 29 31 21 19 22 Ballistic Gun 18 | . 28 27 28 28 12 . . . . . . . . . 1 Slashing Weapon 1 | . . . . . 2 7 13 9 5 5 5 3 . . . Naked Turns . | . . . . . . . . . . . . . . . . Heaviest Build 33 | 14 29 27 26 28 33 19 20 25 9 9 9 13 . 18 22 Greatest Support 46 | 40 40 10 10 28 28 20 20 28 10 10 10 10 3 31 46 Greatest Overweight (x) 7 | . 7 2 2 2 3 . 1 1 . . . 4 . 2 4 Average Overweight (x) . | . . 2 2 . . . . . . . . . . . . Largest Inventory Capacity 15 | 8 15 15 15 15 15 5 5 5 5 5 5 5 5 5 5 Average Capacity 11 | 6 14 15 15 15 12 5 5 5 5 5 5 5 5 5 5 Most Carried 15 | 1 7 9 9 15 15 5 5 5 5 5 5 5 2 5 5 Average Carried 6 | . 5 6 9 13 11 4 4 4 4 5 5 3 2 3 4 Final Capacity 15 | 8 15 15 15 15 5 5 5 5 5 5 5 5 5 5 5 Final Carried 15 | 1 6 9 9 15 5 5 5 4 5 5 5 2 2 3 5 Class Distribution -------------------- 67% | Mutant 14% | Scavenger-Scout 10% | Scavenger-Mutant 5% | Sprinter Dominant Class ---------------- Mutant | -10/Materials Mutant | -10/Mines Mutant | -10/Exiles Mutant | -9/Mines Scavenger-Mutant | -8/Materials Scavenger-Scout | -7/Factory Scavenger-Scout | -6/Factory Scavenger-Sprinter | -5/Factory Sprinter | -5/Upper Caves Sprinter | -5/Upper Caves Sprinter | -4/Factory Sprinter | -4/Upper Caves Mutant | -4/Upper Caves Mutant | -3/Research Mutant | -2/Research Resources | -11 -10 -10 -10 -9 -8 -7 -6 -5 -5 -5 -4 -4 -4 -3 -2 ----------- Run | Yrd Mat Min Exi Min Mat Fac Fac Fac Upp Upp Fac Upp Upp Res Res Matter Collected 1978 | 71 633 168 . 143 276 60 75 89 59 . . 47 . 78 279 Remotely . | . . . . . . . . . . . . . . . . Salvage Created 2325 | . 762 43 . 59 129 119 592 204 . . . 124 . 142 151 Parts 140 | . 45 6 . 5 7 2 36 17 . . . 11 . 5 6 Haulers Intercepted 3 | . . . . . . 1 1 1 . . . . . . . Recyclers Shooed 5 | . 5 . . . . . . . . . . . . . . Parts Field Recycled . | . . . . . . . . . . . . . . . . Retrieved Matter . | . . . . . . . . . . . . . . . . Parts Self-Destructed 15 | . . . . . . . . . . . . 15 . . . Prevented 1 | . . . . . . . . . . 1 . . . . . Kills | -11 -10 -10 -10 -9 -8 -7 -6 -5 -5 -5 -4 -4 -4 -3 -2 ------- Run | Yrd Mat Min Exi Min Mat Fac Fac Fac Upp Upp Fac Upp Upp Res Res Combat Hostiles Destroyed 41 | . 15 3 . 1 1 1 4 6 . . . 5 . 3 2 Melee 6 | . . . . . . . 4 . . . . 2 . . . Guns 26 | . 15 3 . 1 1 . . . . . . 3 . 1 2 Cannons 2 | . . . . . . . . . . . . . . 2 . AOE 6 | . . . . . . . . 6 . . . . . . . Classes Destroyed 12 | . 6 . . . 1 2 1 . . . . . . 1 1 Worker 7 | . 3 . . . 1 . 2 1 . . . . . . . Builder 7 | . . . . . 2 . 5 . . . . . . . . Hauler 3 | . . . . . . 1 1 1 . . . . . . . Recycler 4 | . 2 . . . . . 2 . . . . . . . . Operator 3 | . 2 . . . . 1 . . . . . . . . . Watcher 3 | . 2 . . . 1 . . . . . . . . . . Swarmer 19 | . 3 3 . 1 . . 1 6 . . . 5 . . . Cutter 3 | . . . . . . . 2 . . . . . . 1 . Grunt 16 | . 12 . . 1 1 . 1 . . . . . . 1 . Sentry 2 | . . . . . . 1 . . . . . . . . 1 Programmer 1 | . . . . . . . . . . . . . . . 1 Heavy 1 | . . . . . . . . . . . . . . 1 . Best Kill Streak 7 | . 4 3 . 1 2 2 7 7 . . . 3 . 2 1 Combat Bots Only 6 | . 4 3 . 1 1 1 1 6 . . . 3 . 2 1 Max Kills in Single Turn 4 | . 2 1 . 1 1 1 1 4 . . . 1 . 1 1 Gunslinging 1 | . 1 . . . . . . . . . . . . . . Exploded 4 | . . . . . . . . 4 . . . . . . . Melee 1 | . . . . . . . 1 . . . . 1 . . . Uniques/NPCs Destroyed . | . . . . . . . . . . . . . . . . Combat | -11 -10 -10 -10 -9 -8 -7 -6 -5 -5 -5 -4 -4 -4 -3 -2 -------- Run | Yrd Mat Min Exi Min Mat Fac Fac Fac Upp Upp Fac Upp Upp Res Res Hostile Shots Fired 798 | . 93 22 . 5 20 31 38 84 28 16 . 130 . 64 267 Missed 388 | . 23 5 . 4 4 17 21 42 15 9 . 58 . 33 157 Damage Taken 8116 | . 772 126 . 25 258 95 313 835 178 117 . 1120 . 992 3285 Core 3370 | . 164 57 . 13 76 11 73 188 95 23 . 692 . 505 1473 Absorbed by Shields 100 | . . . . . . 39 61 . . . . . . . . Core Remaining (%) 68 | 100 . . . 6 86 98 91 . . 69 . . 39 61 . Volleys Fired 152 | . 81 5 . 5 15 . . 3 3 . . 7 . 10 23 Largest 2 | . 2 2 . 2 2 . . 1 1 . . 1 . 1 1 Hottest 88 | . 40 40 . 40 40 . . 33 28 . . 28 . 88 65 Shots Fired 261 | . 163 10 3 10 30 . . 3 3 . . 7 . 10 22 Gun 253 | . 163 10 3 10 30 . . . 3 . . 7 . 5 22 Cannon 5 | . . . . . . . . . . . . . . 5 . Launcher 3 | . . . . . . . . 3 . . . . . . . Special . | . . . . . . . . . . . . . . . . Kinetic 231 | . 163 10 3 10 30 . . . 3 . . 7 . 5 . Thermal 27 | . . . . . . . . . . . . . . 5 22 Explosive 3 | . . . . . . . . 3 . . . . . . . Electromagnetic . | . . . . . . . . . . . . . . . . Robot Hit Streak 11 | . 11 2 . 3 5 . . . 1 . . 3 . 5 10 Robot Miss Streak 7 | . 5 2 1 3 2 . . 5 7 . . 2 . 1 1 Penetration Max 1 | . . . . . . . . . . . . . . 1 . Secondary Targets 7 | . 4 1 . 1 1 . . . . . . . . . . Max Gunslinging Chain 1 | . 1 1 . 1 1 . . . . . . . . . . Shots Hit Robots 203 | . 105 4 . 6 20 5 22 5 1 . . 7 . 8 20 Core Hits 105 | . 39 3 . 4 11 1 13 15 . . . 6 . 7 6 Critical Kills 1 | . 1 . . . . . . . . . . . . . . Critical Parts Destroyed 3 | . 1 . . . . 2 . . . . . . . . . Critical Strikes 6 | . 2 . . . . 2 1 . . . . . . 1 . Destroy 2 | . 2 . . . . . . . . . . . . . . Blast 1 | . . . . . . . . . . . . . . 1 . Smash 2 | . . . . . . 2 . . . . . . . . . Sever 1 | . . . . . . . 1 . . . . . . . . Melee Attacks 54 | . . . . . 3 7 29 11 . . . 4 . . . Impact 7 | . . . . . 2 5 . . . . . . . . . Slashing 43 | . . . . . 1 2 29 11 . . . . . . . Piercing 4 | . . . . . . . . . . . . 4 . . . Sneak Attacks 13 | . . . . . 2 1 8 2 . . . . . . . Combat Hostiles . | . . . . . . . . . . . . . . . . Follow-up Attacks 5 | . . . . . . 1 2 2 . . . . . . . Damage Inflicted 5329 | . 1292 63 10 59 424 246 1225 860 23 . . 181 . 285 661 Guns 2471 | . 1288 63 10 58 179 . . . 23 . . 96 . 108 646 Cannons 177 | . . . . . . . . . . . . . . 177 . Explosions 523 | . . . . . . . . 523 . . . . . . . Melee 2137 | . . . . . 244 246 1225 337 . . . 85 . . . Ramming 21 | . 4 . . 1 1 . . . . . . . . . 15 Kinetic 1894 | . 1288 63 10 58 179 . . . 23 . . 96 . 177 . Thermal 754 | . . . . . . . . . . . . . . 108 646 Explosive 523 | . . . . . . . . 523 . . . . . . . Electromagnetic . | . . . . . . . . . . . . . . . . Impact 458 | . . . . . 244 214 . . . . . . . . . Slashing 1594 | . . . . . . 32 1225 337 . . . . . . . Piercing 85 | . . . . . . . . . . . . 85 . . . Highest Corruption 10 | . 6 6 6 6 . 1 5 . . . . . . 10 1 Average Corruption 5 | . 5 6 6 6 . 1 5 . . . . . . 10 1 Corruption Purged . | . . . . . . . . . . . . . . . . Corruption Blocked . | . . . . . . . . . . . . . . . . Effects 120 | . 33 34 45 5 . . 2 . . . . . . . 1 Message Errors 28 | . 9 5 12 1 . . 1 . . . . . . . . Matter Fused 20 | . 7 4 8 1 . . . . . . . . . . . Heat Flow Errors 19 | . 4 9 4 2 . . . . . . . . . . . Energy Discharges 18 | . 6 7 4 . . . 1 . . . . . . . . Data Loss (minor) 14 | . 3 2 8 1 . . . . . . . . . . . Data Loss (major) 8 | . 1 4 3 . . . . . . . . . . . . Misfires 6 | . 2 1 3 . . . . . . . . . . . . Alerts 5 | . . 2 3 . . . . . . . . . . . . Weapon Failures 2 | . 1 . . . . . . . . . . . . . 1 Overload Shots . | . . . . . . . . . . . . . . . . Overflow Damage 515 | . . . . . 174 171 154 16 . . . . . . . Projectiles . | . . . . . . . . . . . . . . . . Explosions 16 | . . . . . . . . 16 . . . . . . . Melee 499 | . . . . . 174 171 154 . . . . . . . . Knockbacks 2 | . . . . . 1 1 . . . . . . . . . Impact 2 | . . . . . 1 1 . . . . . . . . . Kinetic . | . . . . . . . . . . . . . . . . Secondary . | . . . . . . . . . . . . . . . . Self-Inflicted Damage 20 | . . . . . . . . 13 . . . . . . 7 Shots 1 | . . . . . . . . 1 . . . . . . . Rammed 4 | . 2 . . . . . . . . . . . . . 2 Targets Rammed 6 | . 2 . . 1 1 . . . . . . . . . 2 Kicked 2 | . . . . 1 1 . . . . . . . . . . Crushed . | . . . . . . . . . . . . . . . . Highest Temperature 452 | . 218 253 266 93 12 . . 1 . . . . . 60 452 Average Temperature 96 | . 43 101 126 41 5 . . 1 . . . . . 27 141 Received Heat Transfer 1366 | . 375 . . 15 99 20 36 72 18 9 . 9 . 132 581 Effects 3 | . . . 2 . . . . . . . . . . . 1 Energy Bleed 3 | . . . 2 . . . . . . . . . . . 1 Siege Activations . | . . . . . . . . . . . . . . . . Robots Corrupted . | . . . . . . . . . . . . . . . . Combat Hostiles . | . . . . . . . . . . . . . . . . Parts Fried 6 | . . . . . 3 3 . . . . . . . . . Impact Corruptions 9 | . . . . . 5 4 . . . . . . . . . Robots Melted . | . . . . . . . . . . . . . . . . Combat Hostiles . | . . . . . . . . . . . . . . . . Parts Melted 1 | . . . . . . . . . . . . . . . 1 Heat Transferred 888 | . . . . . . . . . . . . . . 148 740 Parts Sabotaged . | . . . . . . . . . . . . . . . . Parts Stolen . | . . . . . . . . . . . . . . . . Parts Stripped . | . . . . . . . . . . . . . . . . Power Chain Reactions . | . . . . . . . . . . . . . . . . Alert | -11 -10 -10 -10 -9 -8 -7 -6 -5 -5 -5 -4 -4 -4 -3 -2 ------- Run | Yrd Mat Min Exi Min Mat Fac Fac Fac Upp Upp Fac Upp Upp Res Res Peak Influence 655 | . 147 60 . 132 142 131 194 655 . . 345 . . 270 511 Initial 271 | . . . . . 51 14 . 89 . . 271 . . 133 151 Average 71 | . 45 1 . 41 55 40 100 267 . . 297 . . 195 290 Maximum Alert Level 2 | . . . . . . . . 2 . . 1 . . 1 2 Low Security (%) 89 | 100 100 100 . 100 100 100 100 47 . . . . . 47 19 Level 1 8 | . . . . . . . . 24 . . 100 . . 52 64 Level 2 2 | . . . . . . . . 27 . . . . . . 16 Level 3 . | . . . . . . . . . . . . . . . . Level 4 . | . . . . . . . . . . . . . . . . Level 5 . | . . . . . . . . . . . . . . . . High Security . | . . . . . . . . . . . . . . . . Max Security . | . . . . . . . . . . . . . . . . Squads Dispatched 34 | . 4 . . 2 9 2 7 4 . . 2 . . 2 2 Investigation 12 | . 2 . . 1 4 . 2 1 . . 2 . . . . Extermination 2 | . . . . . . 1 . . . . . . . . 1 Reinforcement 16 | . 2 . . 1 3 . 5 2 . . . . . 2 1 Assault 2 | . . . . . 1 . . 1 . . . . . . . Garrison 2 | . . . . . 1 1 . . . . . . . . . Intercept . | . . . . . . . . . . . . . . . . Searches Triggered . | . . . . . . . . . . . . . . . . Construction Impeded 3 | . . . . 1 1 . 1 . . . . . . . . Haulers Reinforced . | . . . . . . . . . . . . . . . . Active Scanning Responses . | . . . . . . . . . . . . . . . . Cargo Convoy Interrupts . | . . . . . . . . . . . . . . . . Stealth | -11 -10 -10 -10 -9 -8 -7 -6 -5 -5 -5 -4 -4 -4 -3 -2 --------- Run | Yrd Mat Min Exi Min Mat Fac Fac Fac Upp Upp Fac Upp Upp Res Res Distress Signals 8 | . . . . . . . 2 2 . . . . . 1 3 Communications Jammed . | . . . . . . . . . . . . . . . . Distress Signals . | . . . . . . . . . . . . . . . . Times Spotted 204 | . 29 3 . 8 13 8 25 29 11 4 . 16 . 19 39 Peak Tracking Total 16 | . 4 2 . 3 4 2 8 13 7 4 . 9 . 12 16 Tactical Retreats 23 | . 2 . . . . . 2 4 4 . . 2 . 1 8 Traps | -11 -10 -10 -10 -9 -8 -7 -6 -5 -5 -5 -4 -4 -4 -3 -2 ------- Run | Yrd Mat Min Exi Min Mat Fac Fac Fac Upp Upp Fac Upp Upp Res Res Traps Triggered 4 | . 4 . . . . . . . . . . . . . . Indirectly . | . . . . . . . . . . . . . . . . Trap Hack Attempts . | . . . . . . . . . . . . . . . . Triggered . | . . . . . . . . . . . . . . . . Disarmed . | . . . . . . . . . . . . . . . . Reprogrammed . | . . . . . . . . . . . . . . . . Reused . | . . . . . . . . . . . . . . . . Traps Extracted . | . . . . . . . . . . . . . . . . Installed . | . . . . . . . . . . . . . . . . Triggered 2 | . . . . . . . . . 1 1 . . . . . Machines | -11 -10 -10 -10 -9 -8 -7 -6 -5 -5 -5 -4 -4 -4 -3 -2 ---------- Run | Yrd Mat Min Exi Min Mat Fac Fac Fac Upp Upp Fac Upp Upp Res Res Machines Disabled 2 | . . . . . . 1 . 1 . . . . . . . Max in Single Turn 1 | . . . . . . 1 . 1 . . . . . . . Garrison Access 5 | . . . . . 1 2 . 1 . . . . . . 1 Machines Repaired . | . . . . . . . . . . . . . . . . Machines Dismantled . | . . . . . . . . . . . . . . . . Machines Sabotaged . | . . . . . . . . . . . . . . . . Overloaded Fab Kills . | . . . . . . . . . . . . . . . . Hacking | -11 -10 -10 -10 -9 -8 -7 -6 -5 -5 -5 -4 -4 -4 -3 -2 --------- Run | Yrd Mat Min Exi Min Mat Fac Fac Fac Upp Upp Fac Upp Upp Res Res Machines Accessed 26 | . 5 . 4 1 5 2 2 1 . . 3 . . 1 2 Terminals 15 | . 3 . . . 5 . 2 1 . . 2 . . 1 1 Fabricators . | . . . . . . . . . . . . . . . . Repair Stations 1 | . . . . . . . . . . . 1 . . . . Recycling Units 2 | . 2 . . . . . . . . . . . . . . Scanalyzers . | . . . . . . . . . . . . . . . . Garrison Access 3 | . . . . . . 2 . . . . . . . . 1 Total Hacks 61 | . 19 . 4 1 12 6 6 3 . . 7 . . 1 2 Successful 29 | . 9 . 4 1 4 2 3 1 . . 3 . . 1 1 Failed 32 | . 10 . . . 8 4 3 2 . . 4 . . . 1 Catastrophic 6 | . . . . . 3 . 1 1 . . . . . . 1 Database Lockouts . | . . . . . . . . . . . . . . . . Manual 34 | . 12 . 1 . 10 . 4 2 . . 4 . . . 1 Terminals 41 | . 14 . . . 12 . 6 3 . . 4 . . 1 1 Fabricators . | . . . . . . . . . . . . . . . . Repair Stations 3 | . . . . . . . . . . . 3 . . . . Recycling Units 5 | . 5 . . . . . . . . . . . . . . Scanalyzers . | . . . . . . . . . . . . . . . . Garrison Access 7 | . . . . . . 6 . . . . . . . . 1 Terminal Hacks 16 | . 4 . 4 1 2 . 3 1 . . . . . 1 . Record 6 | . . . 4 . . . 2 . . . . . . . . Robot Analysis 1 | . . . . . 1 . . . . . . . . . . Prototype ID Bank 3 | . 1 . . . . . 1 1 . . . . . . . Open Door 1 | . . . . 1 . . . . . . . . . . . Open DSF 1 | . . . . . . . . . . . . . . 1 . Unreport Threat 3 | . 2 . . . 1 . . . . . . . . . . Recall Investigation 1 | . 1 . . . . . . . . . . . . . . Fabricator Hacks . | . . . . . . . . . . . . . . . . Repair Station Hacks 1 | . . . . . . . . . . . 1 . . . . Scan Component 1 | . . . . . . . . . . . 1 . . . . Recycling Unit Hacks 2 | . 2 . . . . . . . . . . . . . . Report Inventory 1 | . 1 . . . . . . . . . . . . . . Retrieve Components 1 | . 1 . . . . . . . . . . . . . . Scanalyzer . | . . . . . . . . . . . . . . . . Garrison Access Hacks 3 | . . . . . . 2 . . . . . . . . 1 Seal Access 3 | . . . . . . 2 . . . . . . . . 1 Unauthorized Hacks 7 | . 3 . . . 2 . . . . . 2 . . . . Terminals 7 | . 3 . . . 2 . . . . . 2 . . . . Botnet 6 | . 2 . . . 2 . . . . . 2 . . . . Operators 1 | . 1 . . . . . . . . . . . . . . Fabricators . | . . . . . . . . . . . . . . . . Repair Stations . | . . . . . . . . . . . . . . . . Recycling Units . | . . . . . . . . . . . . . . . . Scanalyzers . | . . . . . . . . . . . . . . . . Garrison Access . | . . . . . . . . . . . . . . . . Data Cores Recovered . | . . . . . . . . . . . . . . . . Used . | . . . . . . . . . . . . . . . . Hacking Detections 17 | . 5 . . . 4 1 2 1 . . 3 . . . 1 Full Trace Events 11 | . 2 . . . 4 . 2 1 . . 2 . . . . Feedback Events . | . . . . . . . . . . . . . . . . Feedback Blocked . | . . . . . . . . . . . . . . . . Robot Schematics Acquired . | . . . . . . . . . . . . . . . . Robots Built . | . . . . . . . . . . . . . . . . Authchips . | . . . . . . . . . . . . . . . . Time . | . . . . . . . . . . . . . . . . Total Robot Build Rating . | . . . . . . . . . . . . . . . . Part Schematics Acquired . | . . . . . . . . . . . . . . . . Parts Built . | . . . . . . . . . . . . . . . . Authchips . | . . . . . . . . . . . . . . . . Time . | . . . . . . . . . . . . . . . . Total Part Build Rating . | . . . . . . . . . . . . . . . . Parts Repaired . | . . . . . . . . . . . . . . . . Time . | . . . . . . . . . . . . . . . . Parts Recycled . | . . . . . . . . . . . . . . . . Recycled Matter . | . . . . . . . . . . . . . . . . Retrieved Matter . | . . . . . . . . . . . . . . . . Retrieved Components 2 | . 2 . . . . . . . . . . . . . . Parts Scanalyzed . | . . . . . . . . . . . . . . . . Part Schematics Acquired . | . . . . . . . . . . . . . . . . Parts Damaged . | . . . . . . . . . . . . . . . . Bothacking | -11 -10 -10 -10 -9 -8 -7 -6 -5 -5 -5 -4 -4 -4 -3 -2 ------------ Run | Yrd Mat Min Exi Min Mat Fac Fac Fac Upp Upp Fac Upp Upp Res Res Used RIF Installer . | . . . . . . . . . . . . . . . . Robots Hacked . | . . . . . . . . . . . . . . . . Non-combat . | . . . . . . . . . . . . . . . . Combat . | . . . . . . . . . . . . . . . . Robot Hacks Applied . | . . . . . . . . . . . . . . . . Relay Couplers Released 3 | . . . . . 1 . . 2 . . . . . . . Machine Destruction 3 | . . . . . 1 . . 2 . . . . . . . Fabnet Peak Effective % . | . . . . . . . . . . . . . . . . Robots Rewired . | . . . . . . . . . . . . . . . . Allies Hacked . | . . . . . . . . . . . . . . . . Hacks Repelled . | . . . . . . . . . . . . . . . . Allies | -11 -10 -10 -10 -9 -8 -7 -6 -5 -5 -5 -4 -4 -4 -3 -2 -------- Run | Yrd Mat Min Exi Min Mat Fac Fac Fac Upp Upp Fac Upp Upp Res Res Total Allies 3 | . . 3 . . . . . . . . . . . . . Largest Group 3 | . . 3 3 3 1 . . . . . . . . . . Highest-Rated Group 40 | . . 40 40 40 16 . . . . . . . . . . Highest-Rated Ally 16 | . . 16 16 16 16 . . . . . . . . . . Total Orders . | . . . . . . . . . . . . . . . . Ally Attacks 33 | . . . . 19 14 . . . . . . . . . . Total Damage 364 | . . . . 170 194 . . . . . . . . . . Kills 5 | . . . . 4 1 . . . . . . . . . . Allies Corrupted . | . . . . . . . . . . . . . . . . Allies Melted . | . . . . . . . . . . . . . . . . Intel | -11 -10 -10 -10 -9 -8 -7 -6 -5 -5 -5 -4 -4 -4 -3 -2 ------- Run | Yrd Mat Min Exi Min Mat Fac Fac Fac Upp Upp Fac Upp Upp Res Res Robot Analysis Total 1 | . . . . . 1 . . . . . . . . . . Derelict Logs Recovered 5 | . . 3 . 1 . . . . 1 . . . . . . Drone Launches . | . . . . . . . . . . . . . . . . Drone Recoveries . | . . . . . . . . . . . . . . . . Exploration | -11 -10 -10 -10 -9 -8 -7 -6 -5 -5 -5 -4 -4 -4 -3 -2 ------------- Run | Yrd Mat Min Exi Min Mat Fac Fac Fac Upp Upp Fac Upp Upp Res Res Turns Passed 7158 | 61 1319 1255 1469 296 692 539 309 204 119 26 35 249 19 191 375 Spaces Moved 5631 | 33 584 475 566 174 462 407 292 488 337 81 87 613 38 362 632 Core 136 | 1 3 . . . . . . . . . . 44 38 30 20 Treads 699 | 32 525 . . 85 57 . . . . . . . . . . Legs 1333 | . 56 475 566 89 147 . . . . . . . . . . Wheels . | . . . . . . . . . . . . . . . . Hover 8 | . . . . . . . . . . . . . . 8 . Flight 3455 | . . . . . 258 407 292 488 337 81 87 569 . 324 612 Fastest Speed 20 | 50 160 260 260 120 29 26 26 20 32 32 32 32 50 34 31 Average Speed 100 | 156 170 260 260 148 106 26 26 25 32 32 32 35 50 43 42 Slowest Speed 400 | 160 400 260 260 260 257 26 99 102 32 32 32 250 50 200 250 Overloaded Moves 5 | . . . . . . . . 5 . . . . . . . Propulsion Burnouts . | . . . . . . . . . . . . . . . . Robots Hopped 22 | . . . . . . . . . . . 2 5 . 8 7 Cave-ins Triggered 1 | . . . . . . . 1 . . . . . . . . Exploration Rate (%) 36 | 4 50 97 93 41 40 16 10 16 66 19 3 83 7 13 24 Regions Visited 15 Branch Regions 7 Pre-discovered Areas . | . . . . . . . . . . . . . . . . Known Exits Taken 14 | . 1 1 1 1 1 1 1 1 1 1 1 1 1 1 . Unknown Exits Taken 1 | 1 . . . . . . . . . . . . . . . Scrap Searched 6 | . . 1 . 1 . . . . 2 . . 2 . . . Spaces Dug 2 | . . . . . . . 1 1 . . . . . . . Terrain Destroyed 18 | . . . . . . . 1 16 . . . . . 1 . Melee 2 | . . . . . . . 1 1 . . . . . . . Projectile 1 | . . . . . . . . . . . . . . 1 . AOE 15 | . . . . . . . . 15 . . . . . . . Terrain Rammed . | . . . . . . . . . . . . . . . . Walls Destroyed . | . . . . . . . . . . . . . . . . Machines Disabled . | . . . . . . . . . . . . . . . . Actions | -11 -10 -10 -10 -9 -8 -7 -6 -5 -5 -5 -4 -4 -4 -3 -2 --------- Run | Yrd Mat Min Exi Min Mat Fac Fac Fac Upp Upp Fac Upp Upp Res Res Total 6780 | 39 741 487 565 201 642 829 477 544 344 80 90 624 37 375 705 Wait 773 | . 65 3 . 14 98 403 148 20 . . 5 . . . 17 Move 5574 | 32 583 474 565 173 461 406 291 487 336 80 83 602 37 345 619 Hop 19 | . . . . . . . . . . . 1 5 . 8 5 Pick Up 36 | 1 3 3 . 5 13 1 2 1 . . . . . 2 5 Fast Attach 62 | 6 3 . . 1 3 5 3 10 2 . 1 3 . 7 18 Attach 36 | . 1 1 . . 14 1 2 6 1 . . 3 . 2 5 Detach 24 | . 1 . . . 7 . 1 5 2 . . . . 1 7 Swap 13 | . 2 1 . 2 4 2 1 1 . . . . . . . Drop 39 | . . . . . 24 6 3 3 . . . . . . 3 Fire 152 | . 81 5 . 5 15 . . 3 3 . . 7 . 10 23 Melee 45 | . . . . . 2 5 26 8 . . . 4 . . . Ram 2 | . . . . . . . . . . . . . . . 2 Kick 2 | . . . . 1 1 . . . . . . . . . . Crush 2 | . 2 . . . . . . . . . . . . . . Escape Stasis 1 | . . . . . . . . . . . . . . . 1 Rewire . | . . . . . . . . . . . . . . . . Trap . | . . . . . . . . . . . . . . . . Miscellaneous . | . . . . . . . . . . . . . . . . Route ------- -11/Scrapyard -10/Materials (discovered 2 exits: *Mat / *Min) -10/Mines (discovered 3 exits: *Mat x2 / *Exi) -10/Exiles (discovered 2 exits: *Min x2) -9/Mines -8/Materials -7/Factory -6/Factory -5/Factory (discovered 2 exits: *Fac / *Upp) -5/Upper Caves -5/Upper Caves -4/Factory -4/Upper Caves -4/Upper Caves -3/Research -2/Research History --------- Turn | Location | Event 10 | -11/Scrapyard | Discovered new exit (range 15) 62 | -11/Scrapyard | Entered Materials 303 | -10/Materials | Build established: Mutant 587 | -10/Materials | Discovered new exit (range 15) 716 | -10/Materials | Identified exit to Materials 1024 | -10/Materials | Discovered new exit (range 16) 1191 | -10/Materials | Core integrity fell below 50% 1236 | -10/Materials | Lost 3 parts (1p2n) 1378 | -10/Materials | Identified exit to Mines 1381 | -10/Materials | Entered Mines 1639 | -10/Mines | Learned Materials trap positions 1639 | -10/Mines | Discovered exit to Materials (range 16) 1751 | -10/Mines | Core integrity fell below 20% 1848 | -10/Mines | Discovered exit to Materials (range 11) 1923 | -10/Mines | A weapon hastily lodged in a ceiling crevice suddenly fell to the ground 2070 | -10/Mines | Received a Rocket Launcher from a helpful Derelict 2453 | -10/Mines | Learned Materials stockpile data 2500 | -10/Mines | Assisted by bots powering up and referring to "LRC-V3" 2555 | -10/Mines | Found a damaged Exp. Sensor Array with a note attached 2560 | -10/Mines | Found Prototype Device 2623 | -10/Mines | Deemed a non-threat by the Exiles lab entrance 2626 | -10/Mines | Discovered new exit (range 5) 2634 | -10/Mines | Identified exit to Exiles 2636 | -10/Mines | Entered Exiles 2636 | -10/Exiles | Found Exiles lab abandoned 2636 | -10/Exiles | Accompanied by 3 allies 2670 | -10/Exiles | Discovered new exit (range 15) 3767 | -10/Exiles | Discovered new exit (range 10) 3788 | -10/Exiles | Identified exit to Mines 4105 | -10/Exiles | Entered Mines 4105 | -9/Mines | Accompanied by 3 allies 4122 | -9/Mines | Met a Derelict shopkeep closing up shop 4245 | -9/Mines | Learned Materials stockpile data 4386 | -9/Mines | Discovered new exit (range 10) 4400 | -9/Mines | Identified exit to Materials 4401 | -9/Mines | Entered Materials 4401 | -8/Materials | Accompanied by 1 ally 4401 | -8/Materials | Evolved 4 slots: Propulsion x1, Utility x3 4402 | -8/Materials | Loaded intel: 20 trap records 4409 | -8/Materials | Identified Exp. Sensor Array 4425 | -8/Materials | Garrison activated, responded to threat 4679 | -8/Materials | Build established: Scavenger-Mutant 5058 | -8/Materials | Met 7R-MNS 5082 | -8/Materials | Discovered new exit (range 8) 5090 | -8/Materials | Identified exit to Factory 5093 | -8/Materials | Entered Factory 5093 | -7/Factory | Evolved 2 slots: Propulsion x1, Utility x1 5094 | -7/Factory | Caught up to 7R-MNS 5152 | -7/Factory | Build established: Scavenger-Scout 5220 | -7/Factory | Garrison activated, responded to threat 5618 | -7/Factory | Discovered new exit (range 9) 5630 | -7/Factory | Identified exit to Factory 5632 | -7/Factory | Entered another Factory area 5632 | -6/Factory | Evolved 2 slots: Utility x2 5633 | -6/Factory | Caught up to 7R-MNS 5824 | -6/Factory | Crushed by falling debris 5923 | -6/Factory | Discovered new exit (range 16) 5940 | -6/Factory | Identified exit to Factory 5941 | -6/Factory | Entered another Factory area 5941 | -5/Factory | Evolved 2 slots: Propulsion x2 5955 | -5/Factory | Discovered new exit (range 18) 6075 | -5/Factory | Discovered new exit (range 18) 6144 | -5/Factory | Identified exit to Upper Caves 6145 | -5/Factory | Entered Upper Caves 6146 | -5/Upper Caves | Lost 12 parts (2p6n2u2w) 6163 | -5/Upper Caves | Attracted the attention of an 0b10 outpost 6179 | -5/Upper Caves | Attracted the attention of an 0b10 checkpoint 6182 | -5/Upper Caves | Encountered a Warlord checkpoint 6202 | -5/Upper Caves | Spotted B-75 Beast 6243 | -5/Upper Caves | Learned Factory trap positions 6261 | -5/Upper Caves | Discovered new exit (range 10) 6264 | -5/Upper Caves | Identified exit to Upper Caves 6264 | -5/Upper Caves | Entered another Upper Caves area 6286 | -5/Upper Caves | Discovered new exit (range 14) 6289 | -5/Upper Caves | Attracted the attention of an 0b10 checkpoint 6290 | -5/Upper Caves | Identified exit to Factory 6290 | -5/Upper Caves | Entered Factory 6290 | -4/Factory | Evolved 2 slots: Power x1, Utility x1 6291 | -4/Factory | Loaded intel: 91 trap records 6310 | -4/Factory | Discovered new exit (range 19) 6324 | -4/Factory | Identified exit to Upper Caves 6325 | -4/Factory | Entered Upper Caves 6382 | -4/Upper Caves | Build established: Sprinter 6490 | -4/Upper Caves | Core integrity fell below 50% 6525 | -4/Upper Caves | Lost 10 parts (1p2n4u3w) 6562 | -4/Upper Caves | Attracted the attention of an 0b10 outpost 6571 | -4/Upper Caves | Discovered new exit (range 8) 6574 | -4/Upper Caves | Identified exit to Upper Caves 6574 | -4/Upper Caves | Entered another Upper Caves area 6581 | -4/Upper Caves | Discovered new exit (range 11) 6593 | -4/Upper Caves | Identified exit to Research 6593 | -4/Upper Caves | Entered Research 6593 | -3/Research | Evolved 2 slots: Utility x1, Weapon x1 6764 | -3/Research | Discovered new exit (range 4) 6764 | -3/Research | Identified exit to Research 6782 | -3/Research | System corruption reached 10% 6784 | -3/Research | Entered another Research area 6784 | -2/Research | Evolved 2 slots: Propulsion x2 6807 | -2/Research | Lost 3 parts (1p1n1w) 6899 | -2/Research | Found Prototype Processor 6899 | -2/Research | Identified Spectral Analyzer 6922 | -2/Research | Spotted B-90 Cyclops 6932 | -2/Research | Lost 6 parts (2p2n1u1w) 7098 | -2/Research | Core integrity fell below 50% 7100 | -2/Research | Lost 9 parts (2p1n5u1w) 7157 | -2/Research | Core integrity fell below 20% 7159 | -2/Research | Destroyed by H-81 Overseer with Heavy Linear Accelerator Last Messages --------------- 07145_ Field Propulsion Array destroyed. 07145_ Lgt. Quantum Reactor destroyed. 07145_ Knocked back. 07149_ Acquired Prototype Flight Unit. 07149_ Identified Imp. Q-thruster. 07149_ Imp. Signal Interpreter broken. 07149_ Faulty integration triggers power surge. 07151_ Discarded Broken Imp. Signal Interpreter. 07151_ Q-thruster destroyed. 07153_ Slug penetrates Ion Accelerator. 07154_ Slammed into H-88 Terminator. 07156_ Penetrated by Slug. 07156_ Knocked back. 07156_ Slug penetrates Wall. 07156_ Slug penetrates H-88 Terminator. 07156_ Penetrated by Slug. 07158_ Slug penetrates Wall. 07159_ Penetrated by Slug. 07159_ K-01 Serf collects debris. 07159_ Slug penetrates Wall. Map ----- +----------------------------------------------------+ | ???????????????????????????????????????????? | | ???????????????????????????????????????????? | | ???????????????????????????????????????????? | | ???????????????????????????? ?????????????? | | ???????????????????????????? ?????????????? | | ???????????????????????????? ?????????????? | | ???????????????????????????? ?????????????? | | ???????????????????????????? ?????????????? | | ???????????????????????????? ?????????????? | | ???????????????????????????? ?????????????? | | ???????????????????????????? ?????????????? | | ???????????????????????????? ?????????????? | | ???????????????????????????# ?????????????? | | ???????????????????????????# ?????????????? | | ?????????????????????????#?# #?????????????? | | ??????????????????????###;## #?????????????? | | ??????????????????????# # #?????????????? | | ??????????????????????# # #?????????????? | | ??????????????????????# ! # #?????????????? | | ??????????????????????# # ######????????? | | ??????????????????????# # ## #????????? | | ??????????????????????# # ## #????????? | | ??????????????????????# # ## #????????? | | ??????????????????????# + / ########## | | ?????????????########## # ## ## # | | ?????????????# ###@## "# ## # | | ?????????????# # # ## # | | ?????????????# """ # "#+### # | | ?????????????# """ # # # | | ?????????????# """ %s + # | | ?????????????# """ h#h H # # | | ?????????????# """ # ##+### # | | ?????????????# # # ## # | | ?????????????# ##;h ### ## # | | ?????????????############ #?# *## # | | ????????????????????????# #?# ###/###### | | ????????????????????????# #?#% #?# #????? | | ???????????????????????## ### #?# #????? | | ???????????????????????# Y ## !#?# #????? | | ???????????????????????# ######## #????? | | ???????????????????????+ #????? | | ???????????????????????# k############### | | ???????????????????????# ## """" # | | ???????????????????????### #### """" # | | ?????????????????????????# #??# """" # | | ########################## #### """" # | | # # | | # # | | /* # | | % # # | +----------------------------------------------------+ Best States ------------- Heat Dissipation 49 Energy Generation 45 Energy Capacity 250 Matter Stores 300 Matter Capacity 300 Sight Range 20 Robot Scan Range 20 Terrain Scan Range 20 Terrain Scan Density 10 ECM Strength 1 Armor Coverage 150 Evasion (%) 74 Targeting Accuracy 24 Melee Accuracy 16 Core Analysis 6 Recoil Reduction 2 Trap Extractor Capacity 6 Item Schematics ----------------- None Robot Schematics ------------------ None Fabricated ------------ Nothing Alien Tech Used ----------------- None Achievements -------------- Knowing Is Half The Battle Challenges ------------ None Game ------ Seed ScatterTiamatAmplifier Manual? 0 Play Time 01:30:19 Cumulative 34.1 hours Start 2024.04.08 @ 23:49:33 End 2024.04.09 @ 01:30:41 Sessions 1 Manual Loads 0 Difficulty Rogue Special Mode None Game No. 92 Rogue 90 Adventurer 2 Explorer 0 Win Type - Total 0 Types 0/0/0/0/0/0/0/0/0 Lore% 27 Gallery% 33 Achievement% 25 Wizard Run 0 Options --------- Layout 0 ASCII 0 Keyboard 1 Movement Numpad Keybinds 0 Fullscreen 2 Font 18/SmallcapsGlow Map View 76x50 Zoom Use 0% Tactical HUD 1 Map Filters NONE Filters NONE Steam 1 RUN: f9e374f3-3231-494e-bbc6-bcb324da057e